bitfinex/quotes_BTCUSD_20250224
["timestamp","ask_amount","ask_price","bid_price","bid_amount"]
[1740430148503,0.00091342,94698.0,94697.0,0.283699]
[1740430148710,0.00091342,94698.0,94697.0,0.1283]
[1740430149600,0.00091342,94698.0,94697.0,0.286699]
[1740430149806,0.00091342,94698.0,94697.0,0.1283]
[1740430150016,0.00091342,94698.0,94697.0,0.1313]
[1740430150445,0.00091342,94698.0,94697.0,0.289699]
[1740430150899,0.00091342,94698.0,94697.0,0.1313]
[1740430151319,0.00091342,94698.0,94697.0,0.289699]
[1740430151699,0.00091342,94698.0,94697.0,0.39234469]
[1740430152049,0.00091342,94698.0,94697.0,0.71474469]
[1740430152674,0.00091342,94698.0,94697.0,0.72958473]
[1740430152872,0.0008495,94705.0,94704.0,0.283388]
[1740430153088,0.0012798,94705.0,94704.0,1.39593369]
[1740430153284,0.0012798,94705.0,94704.0,1.4182739]
[1740430153506,0.0012798,94705.0,94704.0,1.4382739]
[1740430153881,0.158319,94746.0,94730.0,0.158343]
[1740430154081,0.00095418,94734.0,94732.0,0.125]
[1740430154282,0.00095418,94734.0,94733.0,0.15629764]
[1740430155418,0.00095418,94734.0,94733.0,0.33822104]
[1740430155631,0.00095418,94734.0,94733.0,0.38394333]
[1740430156837,0.00095418,94734.0,94733.0,0.38794333]
[1740430157012,0.00095418,94734.0,94733.0,0.39394333]
[1740430159888,0.00095418,94734.0,94733.0,0.71634333]
[1740430164904,0.00095418,94734.0,94733.0,0.4574]
[1740430165108,0.00095418,94734.0,94733.0,0.3324]
[1740430166024,0.00095418,94734.0,94733.0,0.01]
[1740430166238,0.00095418,94734.0,94733.0,0.168339]
[1740430166445,0.00095418,94734.0,94733.0,0.004]
[1740430166857,0.00095418,94734.0,94733.0,0.006]
[1740430167084,0.00095418,94734.0,94733.0,0.002]
[1740430167332,0.00095418,94734.0,94733.0,0.004]
[1740430167509,0.00095418,94734.0,94733.0,0.162339]
[1740430167969,0.00095418,94734.0,94733.0,0.26498469]
[1740430168172,0.00095418,94734.0,94733.0,0.34218469]
[1740430171927,0.00095418,94734.0,94733.0,0.39138469]
[1740430173039,0.00095418,94734.0,94733.0,0.38738469]
[1740430173249,0.00095418,94734.0,94733.0,0.39438469]
[1740430173432,0.00195418,94734.0,94733.0,0.40138469]
[1740430174492,0.00195418,94734.0,94733.0,0.40308329]
[1740430177834,0.00195418,94734.0,94733.0,0.72548329]
[1740430187134,0.00195418,94734.0,94733.0,0.56714429]
[1740430187323,0.00195418,94734.0,94733.0,0.4644986]
[1740430187743,0.16029218,94734.0,94733.0,0.3380986]
[1740430188380,0.00195418,94734.0,94733.0,0.3380986]
[1740430188584,0.00195418,94734.0,94733.0,0.3310986]
[1740430188793,0.00195418,94734.0,94733.0,0.4894376]
[1740430188969,0.00095418,94734.0,94733.0,0.4864376]
[1740430189306,0.00095418,94734.0,94733.0,0.4914376]
[1740430189699,0.00095418,94734.0,94733.0,0.1640376]
[1740430189893,0.00095418,94734.0,94733.0,0.2393376]
[1740430190122,0.00095418,94734.0,94733.0,0.39348329]
[1740430191673,0.158299,94757.0,94752.0,0.158307]
[1740430191902,0.158301,94756.0,94750.0,0.36939]
[1740430192138,0.158302,94756.0,94750.0,0.158309]
[1740430192817,0.004,94757.0,94748.0,0.211085]
[1740430193036,0.158304,94754.0,94749.0,0.158312]
[1740430193241,0.215067,94757.0,94750.0,0.158311]
[1740430193467,0.158306,94753.0,94738.0,0.211106]
[1740430193702,0.003,94756.0,94747.0,0.158315]
[1740430193906,0.003,94756.0,94746.0,0.158316]
[1740430194102,0.15831,94751.0,94746.0,0.158316]
[1740430194305,0.158307,94753.0,94747.0,0.158315]
[1740430194715,0.158308,94752.0,94746.0,0.158317]
[1740430194918,0.211081,94751.0,94734.0,0.211117]
[1740430195063,0.211063,94758.0,94735.0,0.10264569]
[1740430195311,0.158306,94753.0,94747.0,0.158314]
[1740430195575,0.03008874,94761.0,94733.0,0.1234986]
[1740430195778,0.03008874,94761.0,94743.0,0.158322]
[1740430196006,0.03008874,94761.0,94741.0,0.2111]
[1740430196174,0.158313,94749.0,94743.0,0.158322]
[1740430196819,0.001,94758.0,94743.0,0.158322]
[1740430196970,0.158314,94749.0,94743.0,0.158322]
[1740430197521,0.0008496,94758.0,94735.0,0.211115]
[1740430197741,0.0008496,94758.0,94744.0,0.15832]
[1740430198147,0.0008496,94758.0,94734.0,0.10264569]
[1740430198298,0.158311,94750.0,94743.0,0.002]
[1740430198498,0.158309,94751.0,94734.0,0.10264569]
[1740430198717,0.0008496,94758.0,94734.0,0.10264569]
[1740430198899,0.0018496,94758.0,94734.0,0.31376169]
[1740430199118,0.0008496,94758.0,94744.0,0.211095]
[1740430199326,0.0008496,94758.0,94747.0,0.158315]
[1740430199525,0.0008496,94758.0,94756.0,0.1583]
[1740430199726,0.0008496,94758.0,94751.0,0.0761]
[1740430199941,0.0018496,94758.0,94751.0,0.0761]
[1740430200536,0.158321,94744.0,94743.0,0.001]
[1740430200740,0.0018496,94758.0,94739.0,0.0801]
[1740430200953,0.158299,94757.0,94739.0,0.0801]
[1740430201164,0.0028496,94758.0,94740.0,0.10264569]
[1740430201369,0.0018496,94758.0,94740.0,0.10264569]
[1740430201576,0.2129146,94758.0,94740.0,0.10264569]
[1740430201789,0.211066,94757.0,94744.0,0.211095]
[1740430201991,0.158301,94757.0,94748.0,0.158313]
[1740430202231,0.0008496,94758.0,94745.0,0.10264569]
[1740430202427,0.0008496,94758.0,94754.0,0.158304]
[1740430202664,0.0008496,94758.0,94751.0,0.211077]
[1740430202918,0.0018496,94758.0,94751.0,0.211077]
[1740430203096,0.0018496,94758.0,94746.0,0.21109]
[1740430203328,0.0018496,94758.0,94745.0,0.10264569]
[1740430203531,0.1591486,94758.0,94751.0,0.158309]
[1740430203740,0.158312,94750.0,94739.0,0.0801]
[1740430203953,0.0008496,94758.0,94740.0,0.10264569]
[1740430204333,0.158302,94756.0,94748.0,0.158313]
[1740430204569,0.0008496,94758.0,94740.0,0.10264569]
[1740430204777,0.0008496,94758.0,94746.0,0.211089]
[1740430204985,0.0008496,94758.0,94740.0,0.10264569]
[1740430205223,0.0008496,94758.0,94739.0,0.0801]
[1740430205224,0.211066,94757.0,94739.0,0.0801]
[1740430205457,0.158334,94736.0,94733.0,0.0016986]
[1740430205683,0.158338,94734.0,94733.0,0.0016986]
[1740430206703,0.211108,94738.0,94733.0,0.0016986]
[1740430207036,0.211103,94741.0,94733.0,0.0016986]
[1740430207258,0.15,94742.0,94735.0,0.001]
[1740430207485,0.15,94733.0,94700.0,4e-05]
[1740430207691,0.158393,94701.0,94700.0,0.00014448]
[1740430208328,0.211177,94707.0,94700.0,0.00014448]
[1740430208531,1.05620423,94722.0,94700.0,0.00014448]
[1740430208736,0.11216569,94721.0,94700.0,0.00014448]
[1740430208946,0.158391,94702.0,94700.0,0.00184328]
[1740430209145,0.158393,94701.0,94700.0,0.00184328]
[1740430209342,0.158393,94701.0,94700.0,0.00384328]
[1740430210023,0.158393,94701.0,94700.0,0.00184328]
[1740430210272,0.15,94720.0,94700.0,0.00984328]
[1740430210566,0.158381,94708.0,94700.0,0.00984328]
[1740430210800,0.15,94717.0,94700.0,0.00984328]
[1740430211045,0.158382,94708.0,94701.0,0.158391]
[1740430211310,0.158382,94708.0,94702.0,0.15839]
[1740430211555,0.15,94711.0,94701.0,0.158392]
[1740430211843,0.158384,94707.0,94700.0,0.00684328]
[1740430212025,0.15,94708.0,94701.0,0.158393]
[1740430212264,0.158383,94707.0,94701.0,0.158393]
[1740430212497,0.15,94708.0,94700.0,0.00184328]
[1740430212706,0.158393,94701.0,94700.0,0.00184328]
[1740430213949,1.05620423,94712.0,94700.0,0.00184328]
[1740430214059,0.15,94705.0,94700.0,0.00184328]
[1740430214481,0.158392,94702.0,94700.0,0.00184328]
[1740430214699,0.158388,94704.0,94700.0,0.00184328]
[1740430214905,0.308386,94705.0,94700.0,0.16023728]
[1740430215129,0.15,94705.0,94700.0,0.00184328]
[1740430215332,0.211179,94707.0,94700.0,0.00184328]
[1740430215333,0.15,94706.0,94701.0,0.158391]
[1740430215756,0.158388,94704.0,94700.0,0.00184328]
[1740430215976,0.15839,94703.0,94700.0,0.00184328]
[1740430216181,0.158388,94704.0,94700.0,0.00184328]
[1740430216378,0.158392,94702.0,94700.0,0.00184328]
[1740430216580,0.001,94705.0,94700.0,0.00184328]
[1740430216788,0.308393,94701.0,94700.0,0.00184328]
[1740430216982,0.308393,94701.0,94700.0,0.00284328]
[1740430216983,1.36459723,94701.0,94700.0,0.00284328]
[1740430217931,1.56988861,94701.0,94700.0,0.00284328]
[1740430218141,1.48178377,94701.0,94700.0,2.8e-07]
[1740430218393,0.158436,94675.0,94674.0,0.001699]
[1740430218602,0.167956,94675.0,94674.0,0.0021293]
[1740430218793,0.158436,94675.0,94674.0,0.0021293]
[1740430219219,1.05620423,94676.0,94674.0,0.0021293]
[1740430219459,0.158436,94675.0,94674.0,0.0021293]
[1740430219580,1.05620423,94676.0,94674.0,0.0021293]
[1740430220173,0.01919379,94676.0,94674.0,0.0021293]
[1740430220501,0.15,94681.0,94674.0,0.0021293]
[1740430220702,0.158436,94675.0,94674.0,0.0021293]
[1740430220954,0.160436,94675.0,94674.0,0.0021293]
[1740430221155,0.211245,94677.0,94674.0,0.0021293]
[1740430221478,0.158435,94676.0,94674.0,0.0031293]
[1740430221671,0.158436,94675.0,94674.0,0.0031293]
[1740430222087,0.158436,94675.0,94674.0,0.0041293]
[1740430222088,0.308436,94675.0,94674.0,0.0041293]
[1740430222661,0.308436,94675.0,94674.0,0.0051293]
[1740430223256,0.308436,94675.0,94674.0,0.0021293]
[1740430223460,0.151,94675.0,94674.0,0.0021293]
[1740430223634,0.309436,94675.0,94674.0,0.0021293]
[1740430223933,0.151,94675.0,94674.0,0.0021293]
[1740430224135,0.151,94675.0,94674.0,0.0031293]
[1740430224348,0.151,94675.0,94674.0,0.0021293]
[1740430224774,0.308436,94675.0,94674.0,0.0021293]
[1740430224976,0.15,94675.0,94674.0,0.0021293]
[1740430225182,0.310436,94675.0,94674.0,0.0021293]
[1740430225571,0.308436,94675.0,94674.0,0.0021293]
[1740430228436,0.41108169,94675.0,94674.0,0.0021293]
[1740430228643,0.51372738,94675.0,94674.0,0.0021293]
[1740430228854,0.41108169,94675.0,94674.0,0.0021293]
[1740430229077,0.308438,94674.0,94673.0,9e-07]
[1740430229285,0.21127,94666.0,94639.0,0.0758]
[1740430229489,0.308471,94654.0,94653.0,0.00176242]
[1740430229691,1.37419523,94654.0,94653.0,0.00176242]
[1740430231379,1.37619523,94654.0,94653.0,0.00276242]
[1740430231765,1.37856329,94654.0,94653.0,0.00176242]
[1740430232173,1.38056329,94654.0,94653.0,0.00176242]
[1740430232996,1.48320898,94654.0,94653.0,0.00176242]
[1740430233414,1.48320898,94654.0,94638.0,0.0016976]
[1740430233628,0.15,94638.0,94618.0,0.0806]
[1740430233844,0.30851,94631.0,94630.0,0.00182482]
[1740430234175,0.41115569,94631.0,94630.0,0.00182482]
[1740430234373,0.51619774,94631.0,94630.0,0.00182482]
[1740430234829,0.41355205,94631.0,94630.0,0.00182482]
[1740430235034,0.41455205,94631.0,94630.0,0.00182482]
[1740430235442,0.41655205,94631.0,94630.0,0.00182482]
[1740430236457,0.41455205,94631.0,94630.0,0.00182482]
[1740430236616,0.41655205,94631.0,94630.0,0.00182482]
[1740430237020,0.308545,94610.0,94609.0,0.001698]
[1740430237271,1.4793032,94610.0,94609.0,0.0001292]
[1740430238098,1.4803032,94610.0,94609.0,0.0051292]
[1740430238512,1.4803032,94610.0,94609.0,0.0001292]
[1740430238718,1.4803032,94610.0,94609.0,0.0031292]
[1740430239816,1.3855726,94610.0,94609.0,0.0031292]
[1740430240149,1.3950926,94610.0,94609.0,0.0031292]
[1740430240274,1.3950926,94610.0,94609.0,0.0061292]
[1740430240714,1.3855726,94610.0,94609.0,0.0061292]
[1740430240973,1.3950926,94610.0,94609.0,0.0061292]
[1740430241724,1.4012216,94610.0,94609.0,0.0061292]
[1740430244808,1.3917016,94610.0,94609.0,0.0061292]
[1740430245011,0.34501737,94610.0,94609.0,0.0061292]
[1740430245265,0.32936837,94610.0,94609.0,0.0078296]
[1740430245470,0.17082337,94610.0,94609.0,0.0078296]
[1740430245685,0.32936837,94610.0,94609.0,0.0078296]
[1740430248314,0.49516168,94610.0,94609.0,6e-07]
[1740430248763,0.30856,94601.0,94589.0,0.001698]
[1740430248965,1.46740992,94601.0,94589.0,0.001698]
[1740430249163,1.46976357,94601.0,94589.0,0.001698]
[1740430249524,1.47400057,94601.0,94589.0,0.001698]
[1740430250823,1.47500057,94601.0,94600.0,0.00204]
[1740430251760,1.47600057,94601.0,94600.0,0.00204]
[1740430253954,0.308575,94592.0,94589.0,0.001698]
[1740430254536,0.312813,94592.0,94589.0,0.001698]
[1740430254883,0.3151686,94592.0,94589.0,0.001698]
[1740430255439,0.3151686,94592.0,94591.0,0.0014]
[1740430256616,0.1523556,94592.0,94591.0,0.0014]
[1740430256834,0.3109306,94592.0,94591.0,0.0014]
[1740430256981,0.1523556,94592.0,94591.0,0.0014]
[1740430257400,0.3109306,94592.0,94591.0,0.0014]
[1740430257602,0.1523556,94592.0,94591.0,0.0014]
[1740430260596,0.3109306,94592.0,94591.0,0.0014]
[1740430260741,0.013757,94599.0,94591.0,0.0014]
[1740430261307,0.158575,94592.0,94591.0,0.0014]
[1740430261737,0.1608165,94592.0,94591.0,0.0004]
[1740430262280,0.26346219,94592.0,94591.0,0.0004]
[1740430262708,0.52316806,94592.0,94591.0,0.0004]
[1740430263011,0.52316806,94592.0,94584.0,0.0016982]
[1740430263012,0.158587,94585.0,94584.0,0.0016982]
[1740430263214,0.158595,94580.0,94568.0,0.0818]
[1740430263418,0.16083434,94580.0,94568.0,0.0818]
[1740430264470,0.16083434,94580.0,94579.0,0.00212897]
[1740430264819,0.26548003,94580.0,94579.0,0.00212897]
[1740430265031,0.36812572,94580.0,94579.0,0.00212897]
[1740430265209,0.53466657,94580.0,94565.0,0.0497]
[1740430265423,0.53466657,94580.0,94554.0,0.0497]
[1740430265424,0.16454085,94578.0,94554.0,0.0497]
[1740430265729,0.158631,94559.0,94558.0,0.00181315]
[1740430266062,0.1608587,94559.0,94558.0,0.00181315]
[1740430266579,0.17810185,94559.0,94558.0,0.00181315]
[1740430266785,0.01947085,94559.0,94558.0,0.00181315]
[1740430267201,0.01947085,94559.0,94558.0,0.16044515]
[1740430267592,0.0022277,94559.0,94558.0,0.23954515]
[1740430267800,0.05324677,94580.0,94564.0,0.0457]
[1740430267976,0.00952,94584.0,94564.0,0.0457]
[1740430268208,0.158615,94569.0,94564.0,0.0457]
[1740430268419,0.158621,94565.0,94564.0,0.0457]
[1740430268875,0.1607427,94565.0,94564.0,0.0457]
[1740430269085,0.1607427,94565.0,94564.0,0.0447]
[1740430269719,0.0021217,94565.0,94564.0,0.0437]
[1740430270136,0.211473,94575.0,94564.0,0.0437]
[1740430270351,0.001,94565.0,94564.0,0.0437]
[1740430270562,0.159621,94565.0,94564.0,0.0437]
[1740430270792,0.158621,94565.0,94564.0,0.0447]
[1740430271016,0.00212383,94565.0,94564.0,0.0447]
[1740430271195,0.16074483,94565.0,94564.0,0.0447]
[1740430271333,0.16074483,94565.0,94564.0,0.0437]
[1740430271543,0.16074483,94565.0,94564.0,0.0467]
[1740430271756,0.00212383,94565.0,94564.0,0.0467]
[1740430272194,0.15861,94572.0,94564.0,0.0467]
[1740430272393,0.00212425,94571.0,94564.0,0.0467]
[1740430272606,0.211474,94575.0,94564.0,0.0487]
[1740430272803,0.15861,94572.0,94564.0,0.0487]
[1740430273013,0.00212467,94571.0,94564.0,0.0467]
[1740430273220,0.15,94578.0,94564.0,0.003]
[1740430273221,0.158612,94570.0,94564.0,0.003]
[1740430273430,0.005,94587.0,94558.0,0.00181315]
[1740430273431,0.158631,94559.0,94558.0,0.00181315]
[1740430273631,0.1607521,94559.0,94558.0,0.00181315]
[1740430273839,0.41339779,94559.0,94558.0,1.5e-07]
[1740430274046,0.41339779,94559.0,94539.0,0.0489]
[1740430274047,0.15,94551.0,94539.0,0.0489]
[1740430274253,0.158662,94540.0,94539.0,0.04901375]
[1740430274457,0.16077827,94540.0,94539.0,0.04901375]
[1740430274856,0.00211627,94540.0,94539.0,0.04901375]
[1740430275058,0.0318,94545.0,94539.0,0.04901375]
[1740430275272,0.00211711,94544.0,94543.0,0.158657]
[1740430275677,0.15,94561.0,94541.0,0.0816]
[1740430275894,0.031794,94566.0,94557.0,0.0816]
[1740430276104,0.00211942,94560.0,94557.0,0.0816]
[1740430276300,0.158629,94561.0,94557.0,0.0816]
[1740430276517,0.031793,94567.0,94558.0,0.0489]
[1740430276895,0.01772919,94584.0,94558.0,0.0489]
[1740430276896,0.158609,94572.0,94564.0,0.158622]
[1740430277210,1.05620423,94580.0,94560.0,0.0816]
[1740430277211,0.00212246,94566.0,94560.0,0.0816]
[1740430277416,0.00212246,94566.0,94565.0,0.158621]
[1740430277592,1.08799323,94580.0,94565.0,0.0816]
[1740430277793,0.211467,94578.0,94565.0,0.0816]
[1740430278121,0.158613,94570.0,94565.0,0.0816]
[1740430278326,0.211471,94576.0,94565.0,0.0816]
[1740430278530,0.00211391,94569.0,94565.0,0.0816]
[1740430278735,0.158608,94573.0,94565.0,0.0816]
[1740430278987,0.158601,94577.0,94568.0,0.158615]
[1740430279203,1.08799323,94580.0,94565.0,0.0816]
[1740430279407,0.002,94578.0,94565.0,0.0816]
[1740430279519,0.158613,94570.0,94565.0,0.0816]
[1740430279729,0.15861,94572.0,94565.0,0.0816]
[1740430280247,0.002,94578.0,94565.0,0.0816]
[1740430280603,0.211463,94579.0,94565.0,0.0816]
[1740430280997,0.211465,94578.0,94565.0,0.0816]
[1740430281342,0.158608,94573.0,94565.0,0.0816]
[1740430282368,0.2151672,94578.0,94565.0,0.0816]
[1740430282544,0.158604,94575.0,94565.0,0.0816]
[1740430282747,0.0057022,94578.0,94565.0,0.0816]
[1740430282950,0.158607,94574.0,94565.0,0.0816]
[1740430283150,0.158604,94576.0,94565.0,0.24022]
[1740430283383,0.0057022,94578.0,94565.0,0.0816]
[1740430283384,0.15861,94572.0,94565.0,0.0816]
[1740430283763,0.211475,94574.0,94565.0,0.0816]
[1740430284427,0.158608,94573.0,94565.0,0.0816]
[1740430285329,0.158607,94573.0,94565.0,0.0816]
[1740430285981,0.159606,94574.0,94565.0,0.0816]
[1740430286408,0.158607,94573.0,94565.0,0.0816]
[1740430286643,0.001,94574.0,94565.0,0.0816]
[1740430287234,0.158608,94573.0,94565.0,0.0816]
[1740430287435,0.211473,94575.0,94565.0,0.0816]
[1740430287664,0.212476,94574.0,94565.0,0.0816]
[1740430287894,0.158607,94573.0,94565.0,0.0816]
[1740430289232,0.158631,94559.0,94558.0,0.0489]
[1740430289860,0.158632,94558.0,94557.0,0.0008511]
[1740430290282,0.15863,94560.0,94557.0,0.0008511]
[1740430290487,0.158632,94558.0,94557.0,0.0008511]
[1740430290690,0.211502,94562.0,94557.0,0.0008511]
[1740430291101,0.031792,94572.0,94557.0,0.0008511]
[1740430291320,0.00211934,94561.0,94558.0,0.0496]
[1740430291495,0.190396,94575.0,94558.0,0.0496]
[1740430291705,1.05790643,94578.0,94558.0,0.0496]
[1740430291904,0.00212333,94574.0,94562.0,0.158625]
[1740430292108,0.158603,94576.0,94562.0,0.158625]
[1740430292313,0.002,94572.0,94563.0,0.0809]
[1740430292518,1.05790643,94578.0,94563.0,0.0809]
[1740430292722,0.00212143,94571.0,94564.0,0.211496]
[1740430292857,0.00212143,94571.0,94567.0,0.0809]
[1740430293066,0.0017022,94578.0,94577.0,0.0493]
[1740430293466,0.0017022,94578.0,94577.0,0.2888]
[1740430293661,0.0017022,94578.0,94577.0,0.39144569]
[1740430293885,0.0017022,94578.0,94577.0,0.23284569]
[1740430294090,0.0017022,94578.0,94577.0,0.39144569]
[1740430294347,0.0017022,94578.0,94577.0,0.23284569]
[1740430294544,0.0017022,94578.0,94577.0,0.23084569]
[1740430294757,0.0017022,94578.0,94577.0,0.38944569]
[1740430295028,0.0017022,94578.0,94577.0,0.39044569]
[1740430295227,0.0017022,94578.0,94577.0,0.23184569]
[1740430295429,0.0027022,94578.0,94577.0,0.39044569]
[1740430298612,0.0017018,94592.0,94579.0,0.158597]
[1740430298820,0.0017018,94592.0,94579.0,0.38284269]
[1740430300946,0.00212885,94580.0,94579.0,0.39484269]
[1740430301338,0.16072385,94580.0,94579.0,0.1336]
[1740430301544,0.16072385,94580.0,94579.0,0.012]
[1740430301766,0.16286666,94580.0,94579.0,0.012]
[1740430302610,0.00227166,94580.0,94572.0,0.0759]
[1740430303019,0.158601,94577.0,94572.0,0.0759]
[1740430303220,0.158603,94576.0,94572.0,0.0759]
[1740430303424,0.16073677,94576.0,94572.0,0.0759]
[1740430303624,0.158605,94575.0,94572.0,0.0759]
[1740430304009,0.158602,94577.0,94572.0,0.0759]
[1740430304222,0.00213356,94574.0,94572.0,0.0759]
[1740430304532,0.00012885,94580.0,94572.0,0.003]
[1740430304533,0.00213335,94573.0,94572.0,0.003]
[1740430304936,0.00012885,94580.0,94572.0,0.003]
[1740430305139,0.00213377,94573.0,94572.0,0.002]
[1740430305365,0.211466,94578.0,94566.0,0.1225]
[1740430305572,0.00213335,94573.0,94572.0,0.004]
[1740430305766,0.1586,94577.0,94572.0,0.004]
[1740430305906,0.00213293,94573.0,94572.0,0.004]
[1740430306113,0.2131694,94578.0,94572.0,0.007]
[1740430306331,0.00213293,94573.0,94572.0,0.007]
[1740430306503,0.1586,94577.0,94572.0,0.007]
[1740430306704,0.00213314,94573.0,94572.0,0.007]
[1740430307019,0.211467,94577.0,94572.0,0.003]
[1740430307219,0.0021323,94573.0,94572.0,0.004]
[1740430307400,0.0017024,94578.0,94572.0,0.001]
[1740430307605,0.0017024,94578.0,94566.0,0.1225]
[1740430307829,0.00213326,94577.0,94572.0,0.003]
[1740430308047,0.00213326,94577.0,94572.0,0.007]
[1740430308449,0.00213326,94577.0,94576.0,0.285302]
[1740430308624,0.0017024,94578.0,94576.0,0.285302]
[1740430308625,0.0017024,94578.0,94576.0,0.1267]
[1740430309458,0.1586,94577.0,94576.0,0.1267]
[1740430309657,0.1586,94577.0,94572.0,0.002]
[1740430309658,0.158607,94573.0,94572.0,0.002]
[1740430310011,0.16074039,94573.0,94572.0,0.002]
[1740430310757,0.158616,94568.0,94567.0,0.3224]
[1740430311185,0.16074834,94568.0,94567.0,0.3224]
[1740430311836,0.16174834,94568.0,94567.0,0.3284]
[1740430312166,0.16174834,94568.0,94567.0,0.3324]
[1740430312576,0.00313234,94568.0,94567.0,0.3324]
[1740430313043,0.00313234,94568.0,94567.0,0.3284]
[1740430313044,0.001,94568.0,94567.0,0.3284]
[1740430313234,0.1517024,94578.0,94567.0,0.3224]
[1740430313452,0.0017024,94578.0,94567.0,0.3224]
[1740430313646,0.00233827,94577.0,94567.0,0.3254]
[1740430313854,0.0017024,94578.0,94567.0,0.3254]
[1740430314011,0.158611,94571.0,94567.0,0.3224]
[1740430314210,0.15,94573.0,94567.0,0.3224]
[1740430314438,0.15,94573.0,94565.0,0.0499]
[1740430314637,0.00259705,94572.0,94566.0,0.0788]
[1740430314891,0.0017024,94578.0,94567.0,0.002]
[1740430315108,0.00259525,94577.0,94567.0,0.002]
[1740430315282,0.00259525,94577.0,94567.0,0.158617]
[1740430315460,0.00259525,94577.0,94567.0,0.159617]
[1740430315665,0.00259525,94577.0,94567.0,0.004]
[1740430315864,0.00259525,94577.0,94567.0,0.003]
[1740430316445,0.21147,94576.0,94567.0,0.003]
[1740430316649,0.0017024,94578.0,94567.0,0.003]
[1740430316650,0.00259962,94575.0,94567.0,0.003]
[1740430316925,0.0017024,94578.0,94567.0,0.003]
[1740430317065,0.00259756,94574.0,94566.0,0.0788]
[1740430317254,0.0017024,94578.0,94567.0,0.159616]
[1740430317457,0.00259705,94577.0,94568.0,0.158616]
[1740430317655,0.00259705,94577.0,94567.0,0.001]
[1740430318067,0.00259705,94577.0,94573.0,0.158607]
[1740430318267,0.00259705,94577.0,94576.0,0.158602]
[1740430318568,0.0027024,94578.0,94577.0,0.1586]
[1740430318772,0.0027024,94578.0,94577.0,0.1576]
[1740430319173,0.0027024,94578.0,94576.0,0.286501]
[1740430319400,0.001,94577.0,94576.0,0.1279]
[1740430319976,0.001,94577.0,94576.0,0.286502]
[1740430320176,0.001,94577.0,94576.0,0.1279]
[1740430320786,0.0017024,94578.0,94576.0,0.1279]
[1740430321046,0.0017024,94578.0,94577.0,0.003]
[1740430321416,0.0017024,94578.0,94576.0,0.1319]
[1740430321823,0.0017024,94578.0,94577.0,0.1586]
[1740430322214,0.0017024,94578.0,94577.0,0.1616]
[1740430322433,0.0017024,94578.0,94577.0,0.26424569]
[1740430322700,0.0017024,94578.0,94577.0,0.34284569]
[1740430322915,0.0017024,94578.0,94577.0,0.38824569]
[1740430323677,0.0017024,94578.0,94577.0,0.23364569]
[1740430323883,0.0017024,94578.0,94577.0,0.39224569]
[1740430324243,0.0017024,94578.0,94577.0,0.38824569]
[1740430324678,0.0027024,94578.0,94577.0,0.39424569]
[1740430324938,0.0017024,94578.0,94577.0,0.38824569]
[1740430325147,0.0027024,94578.0,94577.0,0.39424569]
[1740430325369,0.0027024,94578.0,94577.0,0.39924569]
[1740430326312,0.0027024,94578.0,94577.0,0.72164569]
[1740430326637,0.0027024,94578.0,94577.0,0.71564569]
[1740430326638,0.0017024,94578.0,94577.0,0.71564569]
[1740430326833,0.0027024,94578.0,94577.0,0.72164569]
[1740430327013,0.00012885,94580.0,94577.0,0.87164569]
[1740430327215,0.00012885,94580.0,94579.0,0.435497]
[1740430327480,0.00012885,94580.0,94579.0,0.53814269]
[1740430327595,0.00012885,94580.0,94579.0,0.55268354]
[1740430327811,0.0017018,94592.0,94591.0,0.285477]
[1740430328056,0.0017018,94592.0,94591.0,0.38812269]
[1740430328265,0.0017018,94592.0,94591.0,0.40266354]
[1740430328478,0.0017018,94592.0,94591.0,0.55266354]
[1740430329115,0.158515,94629.0,94609.0,0.286747]
[1740430329328,0.00213236,94610.0,94609.0,0.23084569]
[1740430329543,0.00213236,94610.0,94609.0,0.38939269]
[1740430330853,0.00213236,94610.0,94609.0,0.39639269]
[1740430331178,0.00213236,94610.0,94609.0,0.40139269]
[1740430332755,0.00213236,94610.0,94609.0,0.72379269]
[1740430333811,0.00213236,94610.0,94609.0,0.87379269]
[1740430334459,0.00213236,94610.0,94609.0,0.86179269]
[1740430334667,0.00213236,94610.0,94609.0,0.88262362]
[1740430335044,0.00213236,94610.0,94609.0,0.87762362]
[1740430335447,0.00313236,94610.0,94609.0,0.4576]
[1740430335660,0.17743491,94610.0,94609.0,0.007]
[1740430336016,0.17743491,94610.0,94609.0,0.013]
[1740430336017,0.1638143,94610.0,94609.0,0.013]
[1740430336156,0.3138143,94610.0,94609.0,0.013]
[1740430336352,0.32960056,94610.0,94609.0,0.007]
[1740430336551,0.17105556,94610.0,94609.0,0.014]
[1740430337137,0.32960056,94610.0,94609.0,0.007]
[1740430337361,0.361396,94609.0,94593.0,0.480974]
[1740430337536,0.15856,94602.0,94593.0,0.3224]
[1740430337740,0.00213319,94608.0,94599.0,0.158562]
[1740430337915,0.00213157,94601.0,94599.0,0.158562]
[1740430338116,0.15,94609.0,94596.0,0.158567]
[1740430338294,0.16068342,94608.0,94596.0,0.158567]
[1740430338504,0.00213342,94608.0,94593.0,0.3244]
[1740430338704,0.00213342,94608.0,94599.0,0.158563]
[1740430338905,0.15,94609.0,94597.0,0.158565]
[1740430339107,0.00213131,94608.0,94599.0,0.160563]
[1740430339339,0.00213131,94608.0,94599.0,0.002]
[1740430339494,0.00213131,94608.0,94603.0,0.158556]
[1740430339737,0.00213236,94610.0,94599.0,0.002]
[1740430339738,0.158554,94605.0,94599.0,0.002]
[1740430339946,0.158562,94600.0,94599.0,0.002]
[1740430340156,0.308562,94600.0,94599.0,0.002]
[1740430340362,0.15,94599.0,94579.0,0.0467]
[1740430340562,0.158587,94585.0,94579.0,0.0467]
[1740430340856,0.00213258,94598.0,94570.0,0.0773]
[1740430341027,0.158592,94582.0,94570.0,0.0773]
[1740430341450,0.10264569,94597.0,94570.0,0.0773]
[1740430341451,0.211444,94588.0,94570.0,0.0773]
[1740430341749,0.158599,94578.0,94570.0,0.0773]
[1740430341978,0.158599,94578.0,94567.0,0.000851]
[1740430342187,0.31072292,94578.0,94567.0,0.000851]
[1740430343026,0.31278665,94578.0,94567.0,0.000851]
[1740430343232,0.00418765,94578.0,94567.0,0.000851]